[Event "Titled Tuesday Blitz December 06 Early 2022"]
[White "Matinian, Nikita"]
[Black "Vlassov, Nikolai"]
[WhiteFideId "24129100"]
[BlackFideId "4103360"]
[WhiteElo "2422"]
[BlackElo "2324"]
[Result "0-1"]
[Round "08"]
[TimeControl "180+1"]
[Date "2022.12.07"]
[WhiteClock "0:00:03"]
[BlackClock "0:00:04"]

1. e4 {[%clk 0:03:00]}  c5 {[%clk 0:02:57]} 2. Nf3 {[%clk 0:03:00]}  d6 {[%clk 0:02:57]} 3. d4 {[%clk 0:03:01]}  cxd4 {[%clk 0:02:58]} 4. Nxd4 {[%clk 0:03:02]}  Nf6 {[%clk 0:02:59]} 5. Nc3 {[%clk 0:03:02]}  g6 {[%clk 0:02:59]} 6. Be3 {[%clk 0:03:00]}  a6 {[%clk 0:02:59]} 7. f3 {[%clk 0:02:59]}  Nbd7 {[%clk 0:02:59]} 8. Qd2 {[%clk 0:03:00]}  Qc7 {[%clk 0:02:59]} 9. g4 {[%clk 0:03:00]}  h6 {[%clk 0:02:51]} 10. h4 {[%clk 0:02:57]}  Bg7 {[%clk 0:02:42]} 11. O-O-O {[%clk 0:02:56]}  b5 {[%clk 0:02:41]} 12. a3 {[%clk 0:02:55]}  Bb7 {[%clk 0:02:41]} 13. Be2 {[%clk 0:02:54]}  Ne5 {[%clk 0:02:37]} 14. g5 {[%clk 0:02:53]}  hxg5 {[%clk 0:02:31]} 15. hxg5 {[%clk 0:02:54]}  Nfd7 {[%clk 0:02:25]} 16. Rxh8+ {[%clk 0:02:52]}  Bxh8 {[%clk 0:02:25]} 17. Rh1 {[%clk 0:02:52]}  Bg7 {[%clk 0:02:10]} 18. Rh7 {[%clk 0:02:51]}  Kf8 {[%clk 0:02:10]} 19. f4 {[%clk 0:02:48]}  Nc4 {[%clk 0:02:09]} 20. Bxc4 {[%clk 0:02:48]}  Qxc4 {[%clk 0:02:08]} 21. Qh2 {[%clk 0:02:44]}  Kg8 {[%clk 0:01:59]} 22. Rxg7+ {[%clk 0:02:04]}  Kxg7 {[%clk 0:01:59]} 23. Qh6+ {[%clk 0:02:03]}  Kg8 {[%clk 0:01:59]} 24. f5 {[%clk 0:01:58]}  Nf8 {[%clk 0:01:35]} 25. Nce2 {[%clk 0:01:35]}  Nh7 {[%clk 0:01:07]} 26. fxg6 {[%clk 0:01:22]}  fxg6 {[%clk 0:01:07]} 27. Qxg6+ {[%clk 0:01:22]}  Kh8 {[%clk 0:01:07]} 28. b3 {[%clk 0:01:13]}  Qg8 {[%clk 0:01:00]} 29. Qh6 {[%clk 0:01:08]}  Bxe4 {[%clk 0:00:53]} 30. Ne6 {[%clk 0:01:05]}  Qg6 {[%clk 0:00:46]} 31. Bd4+ {[%clk 0:00:50]}  Kg8 {[%clk 0:00:45]} 32. Qxg6+ {[%clk 0:00:47]}  Bxg6 {[%clk 0:00:44]} 33. N2f4 {[%clk 0:00:48]}  Bf5 {[%clk 0:00:40]} 34. g6 {[%clk 0:00:48]}  Nf6 {[%clk 0:00:36]} 35. Bxf6 {[%clk 0:00:33]}  exf6 {[%clk 0:00:36]} 36. Nc7 {[%clk 0:00:32]}  Rc8 {[%clk 0:00:27]} 37. Nfd5 {[%clk 0:00:32]}  Kg7 {[%clk 0:00:26]} 38. Kd2 {[%clk 0:00:27]}  Be4 {[%clk 0:00:23]} 39. Ne6+ {[%clk 0:00:22]}  Kxg6 {[%clk 0:00:18]} 40. Ne7+ {[%clk 0:00:22]}  Kf7 {[%clk 0:00:19]} 41. Nxc8 {[%clk 0:00:21]}  Kxe6 {[%clk 0:00:19]} 42. a4 {[%clk 0:00:19]}  Bb7 {[%clk 0:00:15]} 43. Nb6 {[%clk 0:00:19]}  f5 {[%clk 0:00:13]} 44. Ke3 {[%clk 0:00:17]}  d5 {[%clk 0:00:12]} 45. c3 {[%clk 0:00:12]}  Kd6 {[%clk 0:00:12]} 46. a5 {[%clk 0:00:11]}  b4 {[%clk 0:00:12]} 47. cxb4 {[%clk 0:00:10]}  Kc6 {[%clk 0:00:12]} 48. Kd4 {[%clk 0:00:07]}  Kb5 {[%clk 0:00:12]} 49. Kc3 {[%clk 0:00:03]}  f4 {[%clk 0:00:11]} 50. Nd7 {[%clk 0:00:03]}  f3 {[%clk 0:00:11]} 51. Kd2 {[%clk 0:00:03]}  Kxb4 {[%clk 0:00:11]} 52. Ne5 {[%clk 0:00:03]}  d4 {[%clk 0:00:10]} 53. Nd3+ {[%clk 0:00:02]}  Kxa5 {[%clk 0:00:09]} 54. Nc5 {[%clk 0:00:03]}  Bd5 {[%clk 0:00:09]} 55. Nd3 {[%clk 0:00:02]}  Kb5 {[%clk 0:00:09]} 56. Nf4 {[%clk 0:00:02]}  Be4 {[%clk 0:00:09]} 57. Ne6 {[%clk 0:00:02]}  d3 {[%clk 0:00:08]} 58. Ng5 {[%clk 0:00:03]}  f2 {[%clk 0:00:07]} 59. Nxe4 {[%clk 0:00:03]}  f1=Q {[%clk 0:00:06]} 60. Kc3 {[%clk 0:00:03]}  Qe2 {[%clk 0:00:05]} 61. Nd6+ {[%clk 0:00:02]}  Kc5 {[%clk 0:00:04]} 62. Nc4 {[%clk 0:00:03]}  Qc2# {[%clk 0:00:04]} 0-1


[Site "https://www.chess.com"]

[Event "Titled Tuesday Blitz December 06 Early 2022"]
[White "Matveeva, Olga"]
[Black "Rangel, Daniel"]
[WhiteFideId "24107018"]
[BlackFideId "2124475"]
[WhiteElo "2056"]
[BlackElo "2225"]
[Result "0-1"]
[Round "08"]
[TimeControl "180+1"]
[Date "2022.12.07"]
[WhiteClock "0:00:05"]
[BlackClock "0:00:09"]

1. d4 {[%clk 0:03:00]}  d5 {[%clk 0:02:58]} 2. c4 {[%clk 0:03:01]}  c6 {[%clk 0:02:58]} 3. Nf3 {[%clk 0:03:01]}  Nf6 {[%clk 0:02:59]} 4. e3 {[%clk 0:03:02]}  e6 {[%clk 0:02:59]} 5. b3 {[%clk 0:02:59]}  Nbd7 {[%clk 0:02:59]} 6. Bb2 {[%clk 0:02:58]}  Bd6 {[%clk 0:02:59]} 7. Bd3 {[%clk 0:02:57]}  O-O {[%clk 0:02:58]} 8. O-O {[%clk 0:02:57]}  Qe7 {[%clk 0:02:58]} 9. Re1 {[%clk 0:02:49]}  e5 {[%clk 0:02:58]} 10. e4 {[%clk 0:02:35]}  dxe4 {[%clk 0:02:56]} 11. Bxe4 {[%clk 0:02:31]}  Nxe4 {[%clk 0:02:56]} 12. Rxe4 {[%clk 0:02:31]}  f5 {[%clk 0:02:55]} 13. Re1 {[%clk 0:02:27]}  e4 {[%clk 0:02:55]} 14. Nbd2 {[%clk 0:02:16]}  Nf6 {[%clk 0:02:49]} 15. Ne5 {[%clk 0:02:14]}  Nd7 {[%clk 0:02:47]} 16. f4 {[%clk 0:02:11]}  c5 {[%clk 0:02:39]} 17. b4 {[%clk 0:01:06]}  cxd4 {[%clk 0:02:36]} 18. c5 {[%clk 0:01:03]}  Bxe5 {[%clk 0:02:29]} 19. fxe5 {[%clk 0:01:03]}  Nxe5 {[%clk 0:02:30]} 20. Bxd4 {[%clk 0:01:01]}  Nd3 {[%clk 0:02:30]} 21. Re3 {[%clk 0:00:50]}  Qf7 {[%clk 0:02:28]} 22. Nf3 {[%clk 0:00:43]}  Nxb4 {[%clk 0:02:25]} 23. Ng5 {[%clk 0:00:39]}  Qd5 {[%clk 0:02:18]} 24. Qh5 {[%clk 0:00:31]}  Rf7 {[%clk 0:01:33]} 25. Qxh7+ {[%clk 0:00:28]}  Kf8 {[%clk 0:01:34]} 26. Qh8+ {[%clk 0:00:25]}  Ke7 {[%clk 0:01:34]} 27. Rd1 {[%clk 0:00:20]}  Nc2 {[%clk 0:01:28]} 28. Nxf7 {[%clk 0:00:18]}  Nxd4 {[%clk 0:01:23]} 29. Qxg7 {[%clk 0:00:14]}  Nf3+ {[%clk 0:00:56]} 30. Rxf3 {[%clk 0:00:12]}  Qxd1+ {[%clk 0:00:55]} 31. Rf1 {[%clk 0:00:11]}  Qh5 {[%clk 0:00:40]} 32. Nd6+ {[%clk 0:00:10]}  Kd8 {[%clk 0:00:31]} 33. Qf8+ {[%clk 0:00:09]}  Kc7 {[%clk 0:00:28]} 34. Nb5+ {[%clk 0:00:09]}  Kc6 {[%clk 0:00:23]} 35. Qd6+ {[%clk 0:00:09]}  Kxb5 {[%clk 0:00:23]} 36. Rb1+ {[%clk 0:00:09]}  Kc4 {[%clk 0:00:23]} 37. Rc1+ {[%clk 0:00:09]}  Kb5 {[%clk 0:00:23]} 38. Rb1+ {[%clk 0:00:08]}  Kc4 {[%clk 0:00:23]} 39. c6 {[%clk 0:00:07]}  Qh8 {[%clk 0:00:16]} 40. Rc1+ {[%clk 0:00:05]}  Qc3 {[%clk 0:00:10]} 41. Rxc3+ {[%clk 0:00:05]}  Kxc3 {[%clk 0:00:11]} 42. cxb7 {[%clk 0:00:05]}  Bxb7 {[%clk 0:00:12]} 43. Qc7+ {[%clk 0:00:05]}  Kd2 {[%clk 0:00:11]} 44. Qxb7 {[%clk 0:00:05]}  Rd8 {[%clk 0:00:09]} 0-1


[Site "https://www.chess.com"]

[Event "Titled Tuesday Blitz December 06 Early 2022"]
[White "Mihailidis, Anastasios"]
[Black "Tsatsalashvili, Keti"]
[WhiteFideId "4205588"]
[BlackFideId "13603434"]
[WhiteElo "2312"]
[BlackElo "2220"]
[Result "1-0"]
[Round "08"]
[TimeControl "180+1"]
[Date "2022.12.07"]
[WhiteClock "0:01:24"]
[BlackClock "0:00:18"]

1. e4 {[%clk 0:03:00]}  c5 {[%clk 0:02:56]} 2. Nf3 {[%clk 0:03:01]}  d6 {[%clk 0:02:56]} 3. d4 {[%clk 0:03:01]}  cxd4 {[%clk 0:02:57]} 4. Nxd4 {[%clk 0:03:02]}  Nf6 {[%clk 0:02:56]} 5. f3 {[%clk 0:03:02]}  e5 {[%clk 0:02:53]} 6. Nb3 {[%clk 0:03:02]}  d5 {[%clk 0:02:50]} 7. Bg5 {[%clk 0:03:02]}  Be6 {[%clk 0:02:47]} 8. Bxf6 {[%clk 0:03:02]}  gxf6 {[%clk 0:02:47]} 9. exd5 {[%clk 0:03:02]}  Qxd5 {[%clk 0:02:47]} 10. Qxd5 {[%clk 0:03:03]}  Bxd5 {[%clk 0:02:48]} 11. Nc3 {[%clk 0:03:03]}  Bc6 {[%clk 0:02:41]} 12. O-O-O {[%clk 0:03:03]}  Nd7 {[%clk 0:02:20]} 13. Nb5 {[%clk 0:02:57]}  Bh6+ {[%clk 0:02:20]} 14. Kb1 {[%clk 0:02:57]}  Ke7 {[%clk 0:02:21]} 15. Nd6 {[%clk 0:02:53]}  Bg7 {[%clk 0:01:35]} 16. Bc4 {[%clk 0:02:49]}  Nb6 {[%clk 0:01:19]} 17. Nf5+ {[%clk 0:02:42]}  Kf8 {[%clk 0:01:17]} 18. Bd3 {[%clk 0:02:31]}  Rg8 {[%clk 0:01:12]} 19. Be4 {[%clk 0:02:29]}  Bd7 {[%clk 0:01:00]} 20. g4 {[%clk 0:02:22]}  Rb8 {[%clk 0:00:54]} 21. Nc5 {[%clk 0:02:20]}  Bxf5 {[%clk 0:00:40]} 22. Bxf5 {[%clk 0:02:21]}  Ke7 {[%clk 0:00:35]} 23. a4 {[%clk 0:02:18]}  Rgd8 {[%clk 0:00:32]} 24. Rxd8 {[%clk 0:01:47]}  Rxd8 {[%clk 0:00:31]} 25. b3 {[%clk 0:01:43]}  Rb8 {[%clk 0:00:30]} 26. Bxh7 {[%clk 0:01:40]}  a5 {[%clk 0:00:30]} 27. Be4 {[%clk 0:01:39]}  Nd7 {[%clk 0:00:24]} 28. Nxb7 {[%clk 0:01:37]}  Ra8 {[%clk 0:00:20]} 29. Rd1 {[%clk 0:01:25]}  Ra7 {[%clk 0:00:19]} 30. Nd6 {[%clk 0:01:24]}  Bh6 {[%clk 0:00:18]} 31. Nf5+ {[%clk 0:01:24]}  Ke8 {[%clk 0:00:18]} 32. Nxh6 {[%clk 0:01:24]} 1-0


[Site "https://www.chess.com"]

[Event "Titled Tuesday Blitz December 06 Early 2022"]
[White "Mikhailovsky, Vladimir"]
[Black "Oparin, Grigoriy"]
[WhiteFideId "34105414"]
[BlackFideId "24125890"]
[WhiteElo "2295"]
[BlackElo "2641"]
[Result "1-0"]
[Round "08"]
[TimeControl "180+1"]
[Date "2022.12.06"]
[WhiteClock "0:00:09"]
[BlackClock "0:00:17"]

1. e4 {[%clk 0:02:55]}  c6 {[%clk 0:03:00]} 2. c4 {[%clk 0:02:50]}  d5 {[%clk 0:03:00]} 3. cxd5 {[%clk 0:02:51]}  cxd5 {[%clk 0:03:01]} 4. exd5 {[%clk 0:02:52]}  Nf6 {[%clk 0:03:01]} 5. Qa4+ {[%clk 0:02:52]}  Nbd7 {[%clk 0:02:56]} 6. Nc3 {[%clk 0:02:52]}  g6 {[%clk 0:02:54]} 7. Nf3 {[%clk 0:02:53]}  Bg7 {[%clk 0:02:54]} 8. Bc4 {[%clk 0:02:54]}  O-O {[%clk 0:02:54]} 9. d3 {[%clk 0:02:54]}  a6 {[%clk 0:02:52]} 10. Qa3 {[%clk 0:02:54]}  b5 {[%clk 0:02:51]} 11. Bxb5 {[%clk 0:02:39]}  Nb6 {[%clk 0:02:48]} 12. Bc6 {[%clk 0:02:37]}  Ra7 {[%clk 0:02:44]} 13. Be3 {[%clk 0:02:35]}  Bg4 {[%clk 0:02:08]} 14. Qa5 {[%clk 0:02:20]}  Nc8 {[%clk 0:01:32]} 15. Qxd8 {[%clk 0:02:18]}  Rxd8 {[%clk 0:01:33]} 16. Bxa7 {[%clk 0:02:17]}  Nxa7 {[%clk 0:01:34]} 17. O-O {[%clk 0:02:11]}  Bxf3 {[%clk 0:01:33]} 18. gxf3 {[%clk 0:02:11]}  Nh5 {[%clk 0:01:33]} 19. Rfe1 {[%clk 0:02:08]}  Nf4 {[%clk 0:01:28]} 20. Rxe7 {[%clk 0:02:04]}  Nc8 {[%clk 0:01:26]} 21. Re8+ {[%clk 0:02:03]}  Rxe8 {[%clk 0:01:27]} 22. Bxe8 {[%clk 0:02:04]}  Nd6 {[%clk 0:01:26]} 23. Bc6 {[%clk 0:02:01]}  f5 {[%clk 0:01:26]} 24. Rd1 {[%clk 0:01:48]}  Kf7 {[%clk 0:01:26]} 25. Kf1 {[%clk 0:01:48]}  g5 {[%clk 0:01:25]} 26. Ne2 {[%clk 0:01:47]}  Nxe2 {[%clk 0:01:21]} 27. Kxe2 {[%clk 0:01:47]}  Bxb2 {[%clk 0:01:22]} 28. Rb1 {[%clk 0:01:39]}  Bd4 {[%clk 0:01:22]} 29. Rb8 {[%clk 0:01:39]}  a5 {[%clk 0:01:17]} 30. Rd8 {[%clk 0:01:30]}  Bc5 {[%clk 0:01:18]} 31. d4 {[%clk 0:01:28]}  Bb4 {[%clk 0:01:17]} 32. Kd3 {[%clk 0:01:27]}  h5 {[%clk 0:01:15]} 33. Rd7+ {[%clk 0:01:23]}  Kf6 {[%clk 0:01:14]} 34. Rh7 {[%clk 0:01:22]}  Kg6 {[%clk 0:00:58]} 35. Re7 {[%clk 0:01:22]}  h4 {[%clk 0:00:49]} 36. Re6+ {[%clk 0:01:21]}  Kf7 {[%clk 0:00:49]} 37. Re2 {[%clk 0:00:56]}  Kf6 {[%clk 0:00:45]} 38. Bd7 {[%clk 0:00:56]}  Kf7 {[%clk 0:00:36]} 39. Rc2 {[%clk 0:00:44]}  Ke7 {[%clk 0:00:35]} 40. Be6 {[%clk 0:00:42]}  Kf6 {[%clk 0:00:34]} 41. Rc6 {[%clk 0:00:42]}  h3 {[%clk 0:00:30]} 42. Kc2 {[%clk 0:00:38]}  Nb5 {[%clk 0:00:29]} 43. Bc8+ {[%clk 0:00:23]}  Ke7 {[%clk 0:00:29]} 44. Kd3 {[%clk 0:00:20]}  Nd6 {[%clk 0:00:29]} 45. Be6 {[%clk 0:00:16]}  Be1 {[%clk 0:00:30]} 46. Rc7+ {[%clk 0:00:14]}  Kf6 {[%clk 0:00:30]} 47. Rd7 {[%clk 0:00:13]}  Bb4 {[%clk 0:00:28]} 48. Rh7 {[%clk 0:00:13]}  Ne8 {[%clk 0:00:20]} 49. Rxh3 {[%clk 0:00:12]}  Bd6 {[%clk 0:00:19]} 50. Rh8 {[%clk 0:00:12]}  Ng7 {[%clk 0:00:19]} 51. Rh6+ {[%clk 0:00:12]}  Ke7 {[%clk 0:00:19]} 52. Rg6 {[%clk 0:00:13]}  Nh5 {[%clk 0:00:18]} 53. Rxg5 {[%clk 0:00:12]}  Nf4+ {[%clk 0:00:19]} 54. Kc4 {[%clk 0:00:12]}  Nh3 {[%clk 0:00:18]} 55. Rxf5 {[%clk 0:00:11]}  Nxf2 {[%clk 0:00:19]} 56. Rf7+ {[%clk 0:00:10]}  Ke8 {[%clk 0:00:19]} 57. h4 {[%clk 0:00:10]}  Nd1 {[%clk 0:00:16]} 58. h5 {[%clk 0:00:09]}  Nb2+ {[%clk 0:00:16]} 59. Kb5 {[%clk 0:00:09]}  Nd3 {[%clk 0:00:17]} 60. h6 {[%clk 0:00:09]} 1-0


[Site "https://www.chess.com"]

[Event "Titled Tuesday Blitz December 06 Early 2022"]
[White "Miszler, Levente"]
[Black "Ghosh, Chanchal Kumer"]
[WhiteFideId "763276"]
[BlackFideId "10201858"]
[WhiteElo "2176"]
[BlackElo "2058"]
[Result "0-1"]
[Round "08"]
[TimeControl "180+1"]
[Date "2022.12.07"]
[WhiteClock "0:00:03"]
[BlackClock "0:00:08"]

1. e4 {[%clk 0:02:58]}  c5 {[%clk 0:03:00]} 2. Nc3 {[%clk 0:02:57]}  e6 {[%clk 0:02:58]} 3. g3 {[%clk 0:02:56]}  Nc6 {[%clk 0:02:57]} 4. Bg2 {[%clk 0:02:56]}  d6 {[%clk 0:02:55]} 5. d3 {[%clk 0:02:54]}  Nf6 {[%clk 0:02:55]} 6. f4 {[%clk 0:02:54]}  Be7 {[%clk 0:02:54]} 7. Nf3 {[%clk 0:02:55]}  O-O {[%clk 0:02:54]} 8. O-O {[%clk 0:02:55]}  a6 {[%clk 0:02:54]} 9. h3 {[%clk 0:02:55]}  Qc7 {[%clk 0:02:52]} 10. g4 {[%clk 0:02:55]}  b5 {[%clk 0:02:49]} 11. g5 {[%clk 0:02:55]}  Nh5 {[%clk 0:02:40]} 12. Nh2 {[%clk 0:02:53]}  g6 {[%clk 0:02:38]} 13. Ng4 {[%clk 0:02:51]}  Bb7 {[%clk 0:02:26]} 14. Nh6+ {[%clk 0:02:51]}  Kg7 {[%clk 0:02:24]} 15. f5 {[%clk 0:02:51]}  exf5 {[%clk 0:02:24]} 16. exf5 {[%clk 0:02:17]}  Bd8 {[%clk 0:01:57]} 17. Nd5 {[%clk 0:02:09]}  Qd7 {[%clk 0:01:52]} 18. fxg6 {[%clk 0:01:46]}  hxg6 {[%clk 0:01:51]} 19. b3 {[%clk 0:01:25]}  Ne5 {[%clk 0:01:38]} 20. Bb2 {[%clk 0:01:15]}  Ra7 {[%clk 0:01:26]} 21. Ng4 {[%clk 0:01:07]}  Bxd5 {[%clk 0:01:01]} 22. Bxd5 {[%clk 0:01:00]}  f6 {[%clk 0:00:49]} 23. gxf6+ {[%clk 0:00:55]}  Bxf6 {[%clk 0:00:50]} 24. Bxe5 {[%clk 0:00:45]}  Bxe5 {[%clk 0:00:44]} 25. Rxf8 {[%clk 0:00:44]}  Kxf8 {[%clk 0:00:44]} 26. Qf3+ {[%clk 0:00:44]}  Kg7 {[%clk 0:00:42]} 27. Rf1 {[%clk 0:00:44]}  Qe7 {[%clk 0:00:31]} 28. Qe4 {[%clk 0:00:36]}  Bd4+ {[%clk 0:00:26]} 29. Kh2 {[%clk 0:00:31]}  Qxe4 {[%clk 0:00:24]} 30. Bxe4 {[%clk 0:00:32]}  Rf7 {[%clk 0:00:22]} 31. Rxf7+ {[%clk 0:00:25]}  Kxf7 {[%clk 0:00:23]} 32. Kg2 {[%clk 0:00:25]}  Nf4+ {[%clk 0:00:20]} 33. Kg3 {[%clk 0:00:25]}  Ne6 {[%clk 0:00:17]} 34. Bd5 {[%clk 0:00:24]}  g5 {[%clk 0:00:17]} 35. Kf3 {[%clk 0:00:22]}  Ke7 {[%clk 0:00:17]} 36. Bxe6 {[%clk 0:00:22]}  Kxe6 {[%clk 0:00:18]} 37. Nh6 {[%clk 0:00:16]}  a5 {[%clk 0:00:14]} 38. Kg4 {[%clk 0:00:15]}  Bf6 {[%clk 0:00:14]} 39. Nf5 {[%clk 0:00:13]}  a4 {[%clk 0:00:13]} 40. Ne3 {[%clk 0:00:11]}  Ke5 {[%clk 0:00:11]} 41. Nf5 {[%clk 0:00:08]}  d5 {[%clk 0:00:10]} 42. bxa4 {[%clk 0:00:02]}  bxa4 {[%clk 0:00:11]} 43. c3 {[%clk 0:00:01]}  Ke6 {[%clk 0:00:10]} 44. Ne3 {[%clk 0:00:01]}  Bxc3 {[%clk 0:00:08]} 45. Nd1 {[%clk 0:00:01]}  Bf6 {[%clk 0:00:07]} 46. Ne3 {[%clk 0:00:02]}  Ke5 {[%clk 0:00:07]} 47. Nf5 {[%clk 0:00:02]}  c4 {[%clk 0:00:07]} 48. dxc4 {[%clk 0:00:03]}  dxc4 {[%clk 0:00:08]} 49. Ne3 {[%clk 0:00:03]}  Kd4 {[%clk 0:00:08]} 50. Nc2+ {[%clk 0:00:03]}  Kc3 {[%clk 0:00:08]} 51. Na3 {[%clk 0:00:03]}  Kb4 {[%clk 0:00:08]} 52. Nc2+ {[%clk 0:00:03]}  Kc3 {[%clk 0:00:08]} 53. Na3 {[%clk 0:00:03]}  Kd3 {[%clk 0:00:09]} 54. Kf5 {[%clk 0:00:03]}  Bd8 {[%clk 0:00:08]} 55. Ke5 {[%clk 0:00:01]}  c3 {[%clk 0:00:08]} 56. h4 {[%clk 0:00:02]}  c2 {[%clk 0:00:08]} 57. Kd5 {[%clk 0:00:03]}  gxh4 {[%clk 0:00:08]} 0-1


[Site "https://www.chess.com"]

[Event "Titled Tuesday Blitz December 06 Early 2022"]
[White "Mitrovic, Darko R"]
[Black "Lauridsen, Jesper Morch"]
[WhiteFideId "927023"]
[BlackFideId "1401890"]
[WhiteElo "2150"]
[BlackElo "2258"]
[Result "0-1"]
[Round "08"]
[TimeControl "180+1"]
[Date "2022.12.07"]
[WhiteClock "0:00:01"]
[BlackClock "0:00:41"]

1. a4 {[%clk 0:02:59]}  a5 {[%clk 0:02:58]} 2. h4 {[%clk 0:02:58]}  Nc6 {[%clk 0:02:54]} 3. b3 {[%clk 0:02:58]}  e5 {[%clk 0:02:55]} 4. c4 {[%clk 0:02:56]}  Bc5 {[%clk 0:02:55]} 5. g3 {[%clk 0:02:56]}  d5 {[%clk 0:02:54]} 6. Nc3 {[%clk 0:02:48]}  dxc4 {[%clk 0:02:48]} 7. bxc4 {[%clk 0:02:48]}  Bf5 {[%clk 0:02:43]} 8. Bg2 {[%clk 0:02:41]}  Nb4 {[%clk 0:02:40]} 9. Be4 {[%clk 0:02:09]}  Bxf2+ {[%clk 0:02:13]} 10. Kxf2 {[%clk 0:02:08]}  Bxe4 {[%clk 0:02:14]} 11. Nxe4 {[%clk 0:02:06]}  Qd4+ {[%clk 0:02:14]} 12. Kg2 {[%clk 0:01:52]}  Qxa1 {[%clk 0:02:03]} 13. Nf3 {[%clk 0:01:52]}  Nf6 {[%clk 0:01:59]} 14. Nxf6+ {[%clk 0:01:46]}  gxf6 {[%clk 0:01:58]} 15. Qb3 {[%clk 0:01:45]}  e4 {[%clk 0:01:47]} 16. Bb2 {[%clk 0:01:10]}  exf3+ {[%clk 0:01:46]} 17. exf3 {[%clk 0:01:10]}  Qa2 {[%clk 0:01:46]} 18. Re1+ {[%clk 0:00:30]}  Kd7 {[%clk 0:01:42]} 19. Qc3 {[%clk 0:00:25]}  Rae8 {[%clk 0:01:37]} 20. Qd4+ {[%clk 0:00:10]}  Kc8 {[%clk 0:01:34]} 21. Rxe8+ {[%clk 0:00:07]}  Rxe8 {[%clk 0:01:34]} 22. Qxf6 {[%clk 0:00:08]}  Qxc4 {[%clk 0:01:15]} 23. Qf5+ {[%clk 0:00:07]}  Kb8 {[%clk 0:01:14]} 24. Qxa5 {[%clk 0:00:06]}  Re2+ {[%clk 0:01:11]} 25. Kh3 {[%clk 0:00:06]}  Qe6+ {[%clk 0:01:08]} 26. g4 {[%clk 0:00:06]}  Qd6 {[%clk 0:01:04]} 27. g5 {[%clk 0:00:02]}  Qe6+ {[%clk 0:00:53]} 28. Kg3 {[%clk 0:00:02]}  Nd3 {[%clk 0:00:46]} 29. Bc3 {[%clk 0:00:01]}  Qd6+ {[%clk 0:00:45]} 30. Kg4 {[%clk 0:00:01]}  Ne5+ {[%clk 0:00:41]} 0-1


[Site "https://www.chess.com"]

[Event "Titled Tuesday Blitz December 06 Early 2022"]
[White "Mkrtchian, Lilit"]
[Black "Buscar, Michael"]
[WhiteFideId "13300601"]
[BlackFideId "2603616"]
[WhiteElo "2316"]
[BlackElo "2010"]
[Result "1-0"]
[Round "08"]
[TimeControl "180+1"]
[Date "2022.12.07"]
[WhiteClock "0:01:59"]
[BlackClock "0:01:17"]

1. Nf3 {[%clk 0:03:00]}  Nf6 {[%clk 0:02:44]} 2. g3 {[%clk 0:03:00]}  g6 {[%clk 0:02:45]} 3. Bg2 {[%clk 0:03:01]}  Bg7 {[%clk 0:02:46]} 4. c4 {[%clk 0:02:59]}  c5 {[%clk 0:02:46]} 5. O-O {[%clk 0:02:58]}  O-O {[%clk 0:02:46]} 6. d4 {[%clk 0:02:58]}  cxd4 {[%clk 0:02:45]} 7. Nxd4 {[%clk 0:02:55]}  Nc6 {[%clk 0:02:44]} 8. Nc3 {[%clk 0:02:54]}  Nxd4 {[%clk 0:02:41]} 9. Qxd4 {[%clk 0:02:54]}  d6 {[%clk 0:02:41]} 10. Qd3 {[%clk 0:02:49]}  a6 {[%clk 0:02:36]} 11. Bg5 {[%clk 0:02:45]}  Qc7 {[%clk 0:02:30]} 12. Bxf6 {[%clk 0:02:41]}  Bxf6 {[%clk 0:02:25]} 13. Nd5 {[%clk 0:02:41]}  Qc5 {[%clk 0:02:22]} 14. Nxf6+ {[%clk 0:02:40]}  exf6 {[%clk 0:02:23]} 15. Rfd1 {[%clk 0:02:26]}  Bf5 {[%clk 0:02:12]} 16. Qd4 {[%clk 0:02:14]}  Rab8 {[%clk 0:01:49]} 17. b3 {[%clk 0:02:11]}  b5 {[%clk 0:01:30]} 18. cxb5 {[%clk 0:02:10]}  Qxb5 {[%clk 0:01:27]} 19. e3 {[%clk 0:02:01]}  Bg4 {[%clk 0:01:17]} 20. Qxg4 {[%clk 0:01:59]} 1-0


[Site "https://www.chess.com"]

[Event "Titled Tuesday Blitz December 06 Early 2022"]
[White "Movahed, Sina"]
[Black "Sagita, Catur Adi"]
[WhiteFideId "42520835"]
[BlackFideId "7104618"]
[WhiteElo "2225"]
[BlackElo "2232"]
[Result "1-0"]
[Round "08"]
[TimeControl "180+1"]
[Date "2022.12.06"]
[WhiteClock "0:00:36"]
[BlackClock "0:01:52"]

1. e4 {[%clk 0:03:00]}  c5 {[%clk 0:02:52]} 2. Nf3 {[%clk 0:03:00]}  e6 {[%clk 0:02:51]} 3. b3 {[%clk 0:03:00]}  Nc6 {[%clk 0:02:51]} 4. Bb2 {[%clk 0:03:00]}  Nf6 {[%clk 0:02:52]} 5. e5 {[%clk 0:03:00]}  Nd5 {[%clk 0:02:52]} 6. c4 {[%clk 0:03:00]}  Nc7 {[%clk 0:02:51]} 7. Bd3 {[%clk 0:02:52]}  Be7 {[%clk 0:02:49]} 8. Nc3 {[%clk 0:02:50]}  O-O {[%clk 0:02:49]} 9. Qb1 {[%clk 0:02:43]}  g6 {[%clk 0:02:48]} 10. Ne4 {[%clk 0:02:41]}  Nb4 {[%clk 0:02:46]} 11. Be2 {[%clk 0:02:38]}  b6 {[%clk 0:02:46]} 12. a3 {[%clk 0:02:38]}  Nc6 {[%clk 0:02:46]} 13. h4 {[%clk 0:02:38]}  h5 {[%clk 0:02:46]} 14. g4 {[%clk 0:02:16]}  hxg4 {[%clk 0:02:45]} 15. Nh2 {[%clk 0:02:03]}  g3 {[%clk 0:02:43]} 16. Ng4 {[%clk 0:02:00]}  g2 {[%clk 0:02:42]} 17. Rg1 {[%clk 0:01:58]}  Nd4 {[%clk 0:02:43]} 18. Nef6+ {[%clk 0:01:57]}  Kg7 {[%clk 0:02:42]} 19. h5 {[%clk 0:01:55]}  Rh8 {[%clk 0:02:38]} 20. h6+ {[%clk 0:01:53]}  Kf8 {[%clk 0:02:38]} 21. Qe4 {[%clk 0:01:52]}  d5 {[%clk 0:02:16]} 22. exd6 {[%clk 0:01:17]}  Qxd6 {[%clk 0:02:15]} 23. Rxg2 {[%clk 0:01:06]}  Rb8 {[%clk 0:02:15]} 24. Bxd4 {[%clk 0:01:02]}  cxd4 {[%clk 0:02:13]} 25. Rg3 {[%clk 0:00:53]}  Bb7 {[%clk 0:02:12]} 26. Qd3 {[%clk 0:00:52]}  e5 {[%clk 0:02:04]} 27. Ne4 {[%clk 0:00:42]}  Bxe4 {[%clk 0:02:04]} 28. Qxe4 {[%clk 0:00:42]}  f5 {[%clk 0:02:04]} 29. Qxe5 {[%clk 0:00:43]}  Qxe5 {[%clk 0:01:59]} 30. Nxe5 {[%clk 0:00:44]}  Rxh6 {[%clk 0:01:59]} 31. Nd7+ {[%clk 0:00:44]}  Kf7 {[%clk 0:01:58]} 32. Nxb8 {[%clk 0:00:45]}  Rh1+ {[%clk 0:01:59]} 33. Bf1 {[%clk 0:00:45]}  Ne6 {[%clk 0:01:55]} 34. Nc6 {[%clk 0:00:42]}  Bh4 {[%clk 0:01:52]} 35. Rh3 {[%clk 0:00:36]} 1-0


[Site "https://www.chess.com"]